{"text_format":"1","workbook":"xlsx","n_sheets":2,"sheets":["diya","data"],"not_rendered":{"charts":1,"images":4,"macros":1,"external_links":0,"defined_names":3,"comments":0,"pivot_tables":0},"unopened":[],"bounds":{"document_bytes":16777216,"sheet_cells":100000,"rows_first":2000,"rows_last":500,"rows_between":2000,"halvings":0,"cell_chars":16384,"cell_head_chars":4096},"cells_cut":0,"cells_raw":0,"read":"whole","date_system":"1900"}

{"sheet":"diya","index":0,"n_rows":24,"n_cols":1,"rows_kept":24,"cut":false,"hidden":false,"merged":[[23,0,23,9]]}
[]
[]
[]
[]
[]
[]
[]
[]
[]
[]
[]
[]
[]
[]
[]
[]
[]
[]
[]
[]
[]
[]
[]
["Happy Diwali from Chandoo.org"]

{"sheet":"data","index":1,"n_rows":16,"n_cols":23,"rows_kept":16,"cut":false,"hidden":true,"merged":[]}
[null,null,null,null,null,null,null,null,null,null,null,null,null,null,null,null,null,0,false,10,{"$f":"IF(isPlaying,\";\",4)","v":4},50,2]
[null,null,null,null,null,null,null,null,null,null,null,null,null,"x","y","Fore","Back","Scale factor","Diya X","Diya Y","Diya1","Diya2"]
[null,null,null,null,null,null,null,null,null,null,null,null,null,7,9,{"$f":"R3+R3*$R$1/maxScale","v":72},{"$f":"R3+R3*(maxScale-$R$1)/maxScale","v":144},72,-2,10,{"$f":"MOD(INT(valZoom/$W$1),2)*$V$1","v":0},{"$f":"$V$1-U3","v":50}]
[null,null,null,null,null,null,null,null,null,null,null,null,null,6,5,{"$f":"R4+R4*$R$1/maxScale","v":96},{"$f":"R4+R4*(maxScale-$R$1)/maxScale","v":192},96,-2,8,{"$f":"MOD(INT(valZoom/$W$1),2)*$V$1","v":0},{"$f":"$V$1-U4","v":50}]
[null,null,null,null,null,null,null,null,null,null,null,null,null,4,7,{"$f":"R5+R5*$R$1/maxScale","v":59},{"$f":"R5+R5*(maxScale-$R$1)/maxScale","v":118},59,-2,6,{"$f":"MOD(INT(valZoom/$W$1),2)*$V$1","v":0},50]
[null,null,null,null,null,null,null,null,null,null,null,null,null,5,2,{"$f":"R6+R6*$R$1/maxScale","v":83},{"$f":"R6+R6*(maxScale-$R$1)/maxScale","v":166},83,-2,4,{"$f":"MOD(INT(valZoom/$W$1),2)*$V$1","v":0},50]
[null,null,null,null,null,null,null,null,null,null,null,null,null,6,5,{"$f":"R7+R7*$R$1/maxScale","v":90},{"$f":"R7+R7*(maxScale-$R$1)/maxScale","v":180},90,-2,2,{"$f":"MOD(INT(valZoom/$W$1),2)*$V$1","v":0},50]
[null,null,null,null,null,null,null,null,null,null,null,null,null,10,1,{"$f":"R8+R8*$R$1/maxScale","v":36},{"$f":"R8+R8*(maxScale-$R$1)/maxScale","v":72},36]
[null,null,null,null,null,null,null,null,null,null,null,null,null,4,10,{"$f":"R9+R9*$R$1/maxScale","v":49},{"$f":"R9+R9*(maxScale-$R$1)/maxScale","v":98},49]
[null,null,null,null,null,null,null,null,null,null,null,null,null,7,3,{"$f":"R10+R10*$R$1/maxScale","v":77},{"$f":"R10+R10*(maxScale-$R$1)/maxScale","v":154},77]
[null,null,null,null,null,null,null,null,null,null,null,null,null,2,2,{"$f":"R11+R11*$R$1/maxScale","v":42},{"$f":"R11+R11*(maxScale-$R$1)/maxScale","v":84},42]
[null,null,null,null,null,null,null,null,null,null,null,null,null,8,7,{"$f":"R12+R12*$R$1/maxScale","v":23},{"$f":"R12+R12*(maxScale-$R$1)/maxScale","v":46},23]
[null,null,null,null,null,null,null,null,null,null,null,null,null,2,9,{"$f":"R13+R13*$R$1/maxScale","v":32},{"$f":"R13+R13*(maxScale-$R$1)/maxScale","v":64},32]
[null,null,null,null,null,null,null,null,null,null,null,null,null,10,2,{"$f":"R14+R14*$R$1/maxScale","v":22},{"$f":"R14+R14*(maxScale-$R$1)/maxScale","v":44},22]
[null,null,null,null,null,null,null,null,null,null,null,null,null,"Dummy"]
[null,null,null,null,null,null,null,null,null,null,null,null,null,0,0,600]